bitfinex/quotes_SOLUSD_20241031
["timestamp","ask_amount","ask_price","bid_price","bid_amount"]
[1730346213695,70.0,174.79,174.76,10.19484664]
[1730346213895,70.0,174.77,174.75,20.0278]
[1730346216025,70.0,174.77,174.75,24.50024664]
[1730346217115,70.0,174.77,174.75,30.22264664]
[1730346217817,70.0,174.8,174.76,10.19484664]
[1730346218021,70.0,174.8,174.78,10.19484664]
[1730346219101,70.0,174.82,174.78,10.19484664]
[1730346219427,70.0,174.82,174.8,10.19484664]
[1730346219917,70.0,174.82,174.81,10.19484664]
[1730346220425,70.0,174.82,174.8,10.19484664]
[1730346220617,70.0,174.84,174.8,10.19484664]
[1730346221622,70.0,174.82,174.81,20.0216]
[1730346222924,70.0,174.82,174.81,14.3012]
[1730346223434,70.0,174.84,174.81,14.3012]
[1730346223829,70.0,174.82,174.81,14.3012]
[1730346224130,70.0,174.82,174.81,20.0216]
[1730346224426,70.0,174.84,174.81,20.0216]
[1730346225328,10.19484664,174.86,174.82,10.19484664]
[1730346225329,70.0,174.86,174.82,10.19484664]
[1730346226024,70.0,174.86,174.83,20.0194]
[1730346227823,70.0,174.86,174.84,10.19484664]
[1730346228329,70.0,174.86,174.83,30.21424664]
[1730346230207,80.19484664,174.86,174.83,20.0194]
[1730346230429,70.0,174.84,174.83,20.0194]
[1730346231614,70.0,174.84,174.83,14.2996]
[1730346232418,70.0,174.84,174.81,5.7204]
[1730346232419,70.0,174.82,174.81,5.7204]
[1730346235909,70.0,174.82,174.8,14.3018]
[1730346239141,70.0,174.8,174.78,10.19484664]
[1730346239441,70.0,174.8,174.77,30.22114664]
[1730346241642,70.0,174.8,174.77,20.0263]
[1730346244935,70.0,174.8,174.77,30.22114664]
[1730346248427,70.0,174.78,174.76,10.19484664]
[1730346248738,70.0,174.78,174.74,24.50154664]
[1730346249323,70.0,174.78,174.75,10.19484664]
[1730346250645,70.0,174.78,174.75,15.91714664]
[1730346254443,70.0,174.78,174.74,24.50154664]
[1730346257060,70.0,174.78,174.74,30.22424664]
[1730346259347,70.0,174.78,174.77,10.19484664]
[1730346259649,70.0,174.8,174.77,10.19484664]
[1730346259951,70.0,174.8,174.79,10.19484664]
[1730346261849,70.0,174.8,174.79,15.91594664]
[1730346263251,70.0,174.8,174.79,5.7211]
[1730346265549,70.0,174.82,174.79,30.21874664]
[1730346265755,70.0,174.84,174.81,10.19484664]
[1730346266056,70.0,174.84,174.82,10.19484664]
[1730346266839,70.0,174.84,174.81,15.91514664]
[1730346267042,70.0,174.84,174.81,30.21634664]
[1730346267256,70.0,174.84,174.82,10.19484664]
[1730346268145,70.0,174.84,174.81,30.21634664]
[1730346269255,70.0,174.86,174.82,33.97173064]
[1730346269552,88.27270846,174.89,174.85,10.19484664]
[1730346269737,88.27270846,174.89,174.87,10.19484664]
[1730346270755,88.27270846,174.89,174.88,5.7182]
[1730346272258,88.27270846,174.89,174.86,10.19484664]
[1730346272735,98.4675551,174.89,174.85,23.776884]
[1730346272935,70.0,174.87,174.84,10.19484664]
[1730346274568,70.0,174.87,174.85,5.7191]
[1730346276058,88.27270846,174.89,174.86,33.97173064]
[1730346276239,88.27270846,174.89,174.87,10.19484664]
[1730346276439,88.27270846,174.89,174.88,10.19484664]
[1730346276836,70.0,174.89,174.88,15.91304664]
[1730346277051,70.0,174.92,174.89,23.776884]
[1730346277246,70.0,174.94,174.91,10.19484664]
[1730346279161,70.0,174.94,174.92,5.7168]
[1730346279544,70.0,174.92,174.91,14.2925]
[1730346287149,70.0,174.92,174.88,28.591]
[1730346287364,70.0,174.92,174.85,28.5948]
[1730346287365,80.19484664,174.9,174.85,10.19484664]
[1730346287582,80.19484664,174.9,174.86,20.7754]
[1730346287947,70.0,174.9,174.86,45.26734664]
[1730346290574,70.0,174.87,174.86,14.2971]
[1730346290776,70.0,174.87,174.86,20.0159]
[1730346290969,70.0,174.87,174.86,14.2971]
[1730346291163,70.0,174.87,174.85,5.7191]
[1730346291572,70.0,174.84,174.83,14.2994]
[1730346292074,70.0,174.84,174.8,10.19484664]
[1730346292278,70.0,174.82,174.79,5.721]
[1730346293073,80.19484664,174.82,174.79,5.721]
[1730346293375,70.0,174.8,174.77,20.0258]
[1730346294070,70.0,174.82,174.79,10.19484664]
[1730346294259,70.0,174.82,174.81,10.19484664]
[1730346294459,70.0,174.82,174.79,10.19484664]
[1730346294661,70.0,174.84,174.8,10.19484664]
[1730346294854,70.0,174.84,174.81,10.19484664]
[1730346295257,70.0,174.84,174.81,15.91504664]
[1730346296676,70.0,174.84,174.8,24.49634664]
[1730346297883,70.0,174.84,174.8,30.21714664]
[1730346298283,70.0,174.84,174.8,20.0223]
[1730346298876,70.0,174.81,174.8,14.3015]
[1730346299669,70.0,174.81,174.8,20.0223]
[1730346300267,70.0,174.84,174.8,30.21714664]
[1730346300558,70.0,174.84,174.82,10.19484664]
[1730346301584,70.0,174.84,174.81,15.91504664]
[1730346301895,70.0,174.82,174.81,5.7202]
[1730346303486,10.19484664,174.85,174.77,28.609]
[1730346303487,70.0,174.8,174.77,38.80384664]
[1730346303694,70.0,174.78,174.76,14.3053]
[1730346303861,70.0,174.78,174.75,15.91724664]
[1730346304063,70.0,174.78,174.75,30.22334664]
[1730346304283,70.0,174.78,174.75,10.19484664]
[1730346304480,70.0,174.78,174.75,15.91714664]
[1730346305488,70.0,174.78,174.75,30.22324664]
[1730346305679,70.0,174.78,174.75,20.0284]
[1730346306685,70.0,174.76,174.75,14.3061]
[1730346307496,70.0,174.73,174.72,20.0316]
[1730346308382,70.0,174.73,174.71,10.19484664]
[1730346308687,70.0,174.73,174.71,15.91854664]
[1730346308885,70.0,174.73,174.72,10.19484664]
[1730346309587,70.0,174.73,174.72,15.91824664]
[1730346309763,70.0,174.73,174.72,5.7234]
[1730346309960,70.0,174.73,174.72,15.91824664]
[1730346311292,70.0,174.75,174.72,30.22684664]
[1730346311476,70.0,174.75,174.73,10.19484664]
[1730346311780,70.0,174.75,174.74,10.19484664]
[1730346312591,10.29484664,174.8,174.74,10.19484664]
[1730346312592,70.0,174.77,174.74,10.19484664]
[1730346312790,70.0,174.77,174.75,5.7224]
[1730346313968,70.0,174.75,174.74,5.7227]
[1730346314472,70.0,174.75,174.72,20.0317]
[1730346315488,70.0,174.75,174.72,24.50344664]
[1730346317168,70.0,174.75,174.72,14.3086]
[1730346317491,80.19484664,174.75,174.72,20.032]
[1730346317669,70.0,174.75,174.72,20.032]
[1730346319480,10.19484664,174.78,174.72,30.22684664]
[1730346319867,10.19484664,174.78,174.73,10.19484664]
[1730346320075,70.0,174.77,174.74,10.19484664]
[1730346320878,70.0,174.77,174.75,10.19484664]
[1730346321088,70.0,174.79,174.76,10.19484664]
[1730346321670,70.0,174.79,174.77,5.7218]
[1730346322899,80.19484664,174.79,174.77,5.7218]
[1730346323084,70.0,174.79,174.77,20.0263]
[1730346323477,70.0,174.79,174.77,14.3045]
[1730346323882,70.0,174.81,174.78,10.19484664]
[1730346325597,70.0,174.81,174.79,10.19484664]
[1730346325801,70.0,174.83,174.8,10.19484664]
[1730346326595,70.0,174.83,174.81,10.19484664]
[1730346326792,70.0,174.86,174.82,10.19484664]
[1730346327096,70.0,174.86,174.83,10.19484664]
[1730346327796,70.0,174.86,174.84,5.7195]
[1730346328575,70.0,174.84,174.81,10.19484664]
[1730346329698,70.0,174.84,174.78,34.3287]
[1730346329699,70.0,174.84,174.82,10.19484664]
[1730346330034,70.0,174.84,174.82,9.69484664]
[1730346330486,70.0,174.84,174.81,10.19484664]
[1730346330907,70.0,174.84,174.82,20.0205]
[1730346332606,70.0,174.86,174.82,20.0205]
[1730346332808,70.0,174.86,174.82,10.19484664]
[1730346333108,70.0,174.86,174.83,10.19484664]
[1730346333410,70.0,174.86,174.84,10.19484664]
[1730346333605,70.0,174.86,174.83,10.19484664]
[1730346333794,70.0,174.88,174.84,33.97173064]
[1730346334308,70.0,174.88,174.85,10.19484664]
[1730346335307,70.0,174.88,174.86,5.7188]
[1730346335489,70.0,174.88,174.86,20.0159]
[1730346335690,80.19484664,174.9,174.86,20.0159]
[1730346335886,70.0,174.9,174.87,10.19484664]
[1730346337596,70.0,174.92,174.89,10.19484664]
[1730346337911,70.0,174.94,174.91,10.19484664]
[1730346338113,70.0,174.94,174.92,10.19484664]
[1730346339392,70.0,174.94,174.93,5.7165]
[1730346341511,70.0,174.94,174.92,14.292]
[1730346341690,10.19484664,174.93,174.92,14.292]
[1730346344507,80.19484664,174.94,174.92,14.292]
[1730346348392,70.0,174.94,174.92,14.292]
[1730346351319,70.0,174.94,174.92,24.48684664]
[1730346352709,70.0,174.94,174.92,30.20364664]
[1730346355322,70.0,174.94,174.92,14.292]
[1730346355709,70.0,174.96,174.92,24.48684664]
[1730346356614,70.0,174.94,174.92,14.292]
[1730346357016,70.0,174.94,174.92,20.0088]
[1730346358329,70.0,174.94,174.92,14.292]
[1730346359129,80.19484664,174.96,174.92,14.292]
[1730346359301,70.0,174.94,174.92,20.0088]
[1730346359825,70.0,174.96,174.92,20.0088]
[1730346360004,70.0,174.96,174.92,30.20364664]
[1730346361223,80.19484664,174.96,174.92,20.0088]
[1730346361435,70.0,174.93,174.92,20.0088]
[1730346361619,70.0,174.91,174.89,14.2946]
[1730346361822,70.0,174.89,174.87,5.7183]
[1730346362134,10.19484664,174.88,174.87,5.7183]
[1730346362717,70.0,174.89,174.87,20.0146]
[1730346363630,70.0,174.89,174.87,14.2963]
[1730346366042,70.0,174.89,174.87,20.0148]
[1730346367019,70.0,174.89,174.87,14.2963]
[1730346374038,70.0,174.87,174.86,10.19484664]
[1730346375351,70.0,174.87,174.86,15.91364664]
[1730346377364,70.0,174.87,174.85,10.19484664]
[1730346378242,70.0,174.89,174.86,10.19484664]
[1730346379046,70.0,174.89,174.87,5.7185]
[1730346379954,70.0,174.89,174.87,30.20964664]
[1730346380162,70.0,174.91,174.88,10.19484664]
[1730346380333,70.0,174.91,174.89,10.19484664]
[1730346380654,70.0,174.91,174.9,10.19484664]
[1730346381253,70.0,174.91,174.89,30.20724664]
[1730346383657,70.0,174.93,174.9,10.19484664]
[1730346385259,70.0,174.93,174.91,5.7172]
[1730346387555,70.0,174.93,174.89,20.0124]
[1730346388669,70.0,174.93,174.89,30.20724664]
[1730346393162,70.0,174.91,174.89,20.0124]
[1730346396049,70.0,174.91,174.89,30.20724664]
[1730346399075,70.0,174.91,174.9,10.19484664]
[1730346399275,70.0,174.93,174.9,10.19484664]
[1730346400362,70.0,174.93,174.91,20.0102]
[1730346400753,70.0,174.93,174.91,30.20504664]
[1730346403380,70.0,174.93,174.91,14.293]
[1730346405282,70.0,174.81,174.79,4.29415354]
[1730346405464,70.0,174.79,174.75,10.19484664]
[1730346405777,70.0,174.79,174.75,5.94717227]
[1730346405961,70.0,174.79,174.74,10.19484664]
[1730346406152,70.0,174.79,174.71,6.04707839]
[1730346406355,70.0,174.79,174.75,10.19484664]
[1730346407581,70.0,174.79,174.76,5.7221]
[1730346410055,70.0,174.83,174.78,10.19484664]
[1730346410262,70.0,174.81,174.79,10.19484664]
[1730346410881,70.0,174.81,174.8,10.19484664]
[1730346411061,70.0,174.81,174.79,10.19484664]
[1730346412594,70.0,174.81,174.8,10.19484664]
[1730346413868,70.0,174.81,174.8,15.91564664]
[1730346416961,70.0,174.83,174.8,30.21764664]
[1730346417177,70.0,174.83,174.81,10.19484664]
[1730346417378,70.0,174.83,174.8,30.21764664]
[1730346421378,70.0,174.83,174.8,20.0228]
[1730346421771,70.0,174.81,174.78,5.7214]
[1730346423088,70.0,174.79,174.77,20.0262]
[1730346423470,70.0,174.79,174.77,30.22104664]
[1730346423679,70.0,174.81,174.78,10.19484664]
[1730346424293,70.0,174.81,174.79,10.19484664]
[1730346425390,70.0,174.81,174.79,15.91564664]
[1730346425580,70.0,174.81,174.79,30.21844664]
[1730346426688,70.0,174.81,174.78,10.19484664]
[1730346427493,70.0,174.81,174.77,10.19484664]
[1730346429702,70.0,174.81,174.78,20.025]
[1730346429887,70.0,174.81,174.78,30.21984664]
[1730346433394,70.0,174.81,174.77,10.19484664]
[1730346434197,70.0,174.81,174.78,10.19484664]
[1730346434586,70.0,174.81,174.79,5.7211]
[1730346437399,70.0,174.79,174.78,14.3034]
[1730346437610,70.0,174.79,174.78,20.0248]
[1730346438686,70.0,174.79,174.78,24.49824664]
[1730346440301,70.0,174.81,174.78,24.49824664]
[1730346440503,70.0,174.81,174.79,10.19484664]
[1730346440807,70.0,174.81,174.8,5.7208]
[1730346441481,70.0,174.81,174.79,5.7211]
[1730346441684,70.0,174.81,174.78,24.49824664]
[1730346441685,70.0,174.79,174.76,10.19484664]
[1730346441883,70.0,174.79,174.76,30.22224664]
[1730346442786,70.0,174.77,174.76,20.0274]
[1730346444206,70.0,174.77,174.76,14.3053]
[1730346445608,70.0,174.75,174.73,24.50224664]
[1730346446190,70.0,174.75,174.74,10.19484664]
[1730346446709,70.0,174.75,174.74,15.91754664]
[1730346448096,70.0,174.75,174.74,5.7227]
[1730346449487,70.0,174.75,174.73,24.50224664]
[1730346449692,70.0,174.75,174.73,14.3074]
[1730346449898,70.0,174.73,174.71,10.19484664]
[1730346450100,70.0,174.73,174.71,15.91844664]
[1730346450296,70.0,174.73,174.71,5.7236]
[1730346452212,70.0,174.71,174.7,15.91884664]
[1730346458215,70.0,174.71,174.7,5.724]
[1730346459894,70.0,174.68,174.65,28.6273]
[1730346460100,70.0,174.68,174.65,30.23484664]
[1730346461000,70.0,174.68,174.66,10.19484664]
[1730346461209,70.0,174.68,174.67,10.19484664]
[1730346461420,70.0,174.7,174.67,10.19484664]
[1730346461591,70.0,174.7,174.69,10.19484664]
[1730346462016,70.0,174.7,174.68,10.19484664]
[1730346462397,70.0,174.7,174.69,5.7244]
[1730346463432,70.0,174.7,174.68,14.3115]
[1730346463609,70.0,174.7,174.68,20.0362]
[1730346465015,70.0,174.7,174.68,14.3115]
[1730346465327,80.19484664,174.7,174.68,14.3115]
[1730346467130,70.0,174.67,174.65,48.6686]
[1730346467631,70.0,174.67,174.65,58.86344664]
[1730346468808,70.0,174.67,174.65,20.04]
[1730346469905,70.0,174.67,174.65,14.3143]
[1730346471126,70.0,174.67,174.65,20.04]
[1730346472516,70.0,174.65,174.64,10.19484664]
[1730346472720,70.0,174.67,174.64,10.19484664]
[1730346472918,70.0,174.67,174.66,10.19484664]
[1730346475226,70.0,174.67,174.66,15.92024664]
[1730346493633,70.0,174.67,174.66,5.7254]
[1730346494512,70.0,174.67,174.65,24.50874664]
[1730346494714,70.0,174.67,174.65,20.0396]
[1730346497242,70.0,174.67,174.65,10.19484664]
[1730346498422,70.0,174.67,174.65,15.92034664]
[1730346498929,70.0,174.67,174.65,5.7255]
[1730346499322,70.0,174.65,174.64,14.3147]
[1730346499524,70.0,174.65,174.64,20.0407]
[1730346503114,70.0,174.65,174.64,24.50954664]
[1730346504527,70.0,174.65,174.64,30.23554664]
[1730346504737,70.0,174.67,174.64,54.01243064]
[1730346505125,70.0,174.67,174.66,10.19484664]
[1730346505945,70.0,174.67,174.66,15.92024664]
[1730346506519,70.0,174.69,174.66,30.23374664]
[1730346506721,70.0,174.69,174.68,10.19484664]
[1730346507138,70.0,174.67,174.66,30.23374664]
[1730346507350,70.0,174.67,174.66,20.0389]
[1730346509550,70.0,174.67,174.66,14.3135]
[1730346509741,70.0,174.67,174.65,5.7257]
[1730346509929,70.0,174.67,174.64,5.726]
[1730346510130,70.0,174.65,174.64,5.726]
[1730346510829,70.0,174.65,174.63,24.51064664]
[1730346511158,70.0,174.65,174.64,10.19484664]
[1730346512549,70.0,174.65,174.64,15.92084664]
[1730346512951,70.0,174.65,174.64,5.726]
[1730346515346,70.0,174.65,174.64,15.92084664]
[1730346515528,70.0,174.65,174.64,5.726]
[1730346521152,70.0,174.65,174.63,14.3158]
[1730346521338,70.0,174.65,174.63,20.0421]
[1730346523260,70.0,174.65,174.63,14.3158]
[1730346525188,70.0,174.65,174.63,20.0421]
[1730346527046,70.0,174.65,174.64,10.19484664]
[1730346529155,70.0,174.65,174.64,15.92084664]
[1730346531040,70.0,174.68,174.64,30.23594664]
[1730346531242,70.0,174.68,174.67,10.19484664]
[1730346531544,70.0,174.71,174.67,10.19484664]
[1730346532334,70.0,174.71,174.68,5.7247]
[1730346533451,70.0,174.69,174.68,5.7247]
[1730346535966,70.0,174.69,174.66,10.19484664]
[1730346536872,70.0,174.69,174.65,10.19484664]
[1730346537167,70.0,174.67,174.64,23.776884]
[1730346537358,70.0,174.65,174.63,30.23704664]
[1730346538370,70.0,174.65,174.63,14.3159]
[1730346539374,70.0,174.65,174.63,20.0422]
[1730346540185,70.0,174.65,174.63,30.23704664]
[1730346540974,70.0,174.65,174.64,10.19484664]
[1730346541469,70.0,174.67,174.64,10.19484664]
[1730346541847,70.0,174.67,174.65,10.19484664]
[1730346542052,70.0,174.7,174.66,10.19484664]
[1730346542370,70.0,174.7,174.67,10.19484664]
[1730346542959,70.0,174.7,174.68,20.0365]
[1730346544979,80.19484664,174.7,174.68,14.3118]
[1730346545161,70.0,174.68,174.65,14.314]
[1730346545360,70.0,174.66,174.65,20.0397]
[1730346546654,17.55154807,174.72,174.66,23.776884]
[1730346546655,70.0,174.69,174.66,23.776884]
[1730346549879,70.0,174.69,174.63,28.6319]
[1730346549880,80.19484664,174.69,174.67,20.0377]
[1730346551381,80.19484664,174.69,174.67,14.3127]
[1730346551676,70.0,174.69,174.67,14.3127]
[1730346559887,70.0,174.64,174.62,20.0435]
[1730346563296,70.0,174.64,174.62,30.23834664]
[1730346564501,70.0,174.64,174.62,20.0435]
[1730346569496,70.0,174.64,174.62,30.23834664]
[1730346569904,70.0,174.64,174.62,20.0435]
[1730346573078,70.0,174.64,174.62,30.23834664]
[1730346575092,70.0,174.66,174.63,10.19484664]
[1730346575492,70.0,174.66,174.64,10.19484664]
[1730346576007,70.0,174.66,174.63,10.19484664]
[1730346576599,70.0,174.66,174.64,20.0411]
[1730346586710,70.0,174.66,174.64,14.3151]
[1730346589915,70.0,174.62,174.61,6.3276928]
[1730346600333,70.0,174.62,174.61,16.52253944]
[1730346600530,70.0,174.62,174.61,6.3276928]
[1730346607911,80.19484664,174.62,174.61,0.6007928]
[1730346609533,70.0,174.62,174.61,0.6007928]
[1730346610712,70.0,174.62,174.61,6.3277928]
[1730346611033,70.0,174.62,174.61,16.52263944]
[1730346611234,70.0,174.62,174.61,6.3277928]
[1730346613818,70.0,174.62,174.61,0.6007928]
[1730346616335,80.19484664,174.62,174.61,0.6007928]
[1730346618018,85.92154664,174.62,174.61,0.6007928]
[1730346618220,80.19484664,174.62,174.61,0.6007928]
[1730346619418,70.0,174.62,174.61,0.6007928]
[1730346620423,70.0,174.62,174.61,6.3277928]
[1730346625265,70.0,174.64,174.61,20.6453928]
[1730346625422,70.0,174.64,174.61,30.84023944]
[1730346625738,70.0,174.64,174.61,46.86613944]
[1730346626443,70.0,174.64,174.61,36.6712928]
[1730346626651,70.0,174.64,174.61,46.86613944]
[1730346627449,70.0,174.62,174.61,36.6712928]
[1730346634861,70.0,174.62,174.61,14.9183928]
[1730346635042,80.19484664,174.62,174.61,0.6007928]
[1730346638637,70.0,174.62,174.61,6.3277928]
[1730346642153,80.19484664,174.62,174.61,0.6007928]
[1730346645759,70.0,174.62,174.61,6.3277928]
[1730346647059,70.0,174.62,174.61,0.6007928]
[1730346650162,70.0,174.62,174.61,6.3277928]
[1730346657474,70.0,174.62,174.61,0.6007928]
[1730346666057,70.0,174.62,174.61,6.3277928]
[1730346669959,70.0,174.65,174.62,23.776884]
[1730346670154,70.0,174.65,174.64,10.19484664]
[1730346670577,70.0,174.65,174.63,10.19484664]
[1730346670774,70.0,174.65,174.62,33.97173064]
[1730346672065,70.0,174.65,174.63,20.0422]
[1730346673981,70.0,174.68,174.64,33.97173064]
[1730346674174,70.0,174.68,174.66,10.19484664]
[1730346674380,70.0,174.68,174.64,33.97173064]
[1730346675086,70.0,174.68,174.65,10.19484664]
[1730346675866,70.0,174.68,174.66,10.19484664]
[1730346676066,70.0,174.68,174.66,24.50834664]
[1730346676269,70.0,174.68,174.66,14.3135]
[1730346679891,70.0,174.7,174.67,10.19484664]
[1730346680390,70.0,174.7,174.68,20.0365]
[1730346681774,10.19484664,174.69,174.68,14.3118]
[1730346682389,70.0,174.67,174.65,20.04]
[1730346683468,70.0,174.67,174.65,30.23484664]
[1730346684577,70.0,174.69,174.65,30.23484664]
[1730346686214,70.0,174.69,174.67,20.0377]
[1730346687978,70.0,174.69,174.67,14.3127]
[1730346688579,70.0,174.69,174.67,24.50754664]
[1730346690108,70.0,174.69,174.67,30.23254664]
[1730346690284,70.0,174.69,174.67,20.0377]
[1730346690802,70.0,174.69,174.67,30.23254664]
[1730346690988,70.0,174.69,174.67,20.0377]
[1730346692709,70.0,174.69,174.67,14.3127]
[1730346698009,70.0,174.69,174.67,20.0377]
[1730346701580,70.0,174.71,174.68,10.19484664]
[1730346703708,70.0,174.71,174.69,14.311]
[1730346703889,80.19484664,174.71,174.69,14.311]
[1730346704207,70.0,174.68,174.65,10.19484664]
[1730346704510,70.0,174.68,174.66,20.0389]
[1730346705337,70.0,174.68,174.66,10.19484664]
[1730346706390,70.0,174.68,174.67,5.725]
[1730346707284,70.0,174.72,174.67,30.23254664]
[1730346707509,70.0,174.72,174.68,33.97173064]
[1730346708012,70.0,174.72,174.69,10.19484664]
[1730346708513,70.0,174.72,174.7,20.0342]
[1730346709405,70.0,174.68,174.67,20.0376]
[1730346709705,70.0,174.66,174.64,5.726]
[1730346710488,70.0,174.66,174.64,20.0411]
[1730346714410,70.0,174.66,174.64,14.3151]
[1730346716198,70.0,174.63,174.61,0.6007928]
[1730346719322,10.19484664,174.62,174.61,0.6007928]
[1730346721410,15.92154664,174.62,174.61,0.6007928]
[1730346722017,70.0,174.63,174.61,0.6007928]
[1730346722018,80.19484664,174.63,174.61,0.6007928]
[1730346722428,10.19484664,174.62,174.61,0.6007928]
[1730346724509,80.19484664,174.63,174.61,0.6007928]
[1730346726224,80.19484664,174.63,174.62,5.7267]
[1730346726526,80.19484664,174.63,174.61,0.6007928]
[1730346727106,70.0,174.63,174.61,0.6007928]
[1730346728211,80.19484664,174.63,174.61,0.6007928]
[1730346729500,70.0,174.63,174.61,0.6007928]
[1730346733729,10.19484664,174.62,174.61,0.6007928]
[1730346738132,15.92154664,174.62,174.61,0.6007928]
[1730346738437,15.92154664,174.62,174.51,16.4669]
[1730346738438,70.0,174.53,174.51,16.4669]
[1730346738606,70.0,174.48,174.46,14.3297]
[1730346738807,80.19484664,174.48,174.46,14.3297]
[1730346739316,70.0,174.45,174.44,16.4669]
[1730346739532,80.19484664,174.45,174.44,16.4669]
[1730346739709,70.0,174.45,174.44,16.4669]
[1730346740815,70.0,174.45,174.43,6.3334928]
[1730346741324,80.19484664,174.45,174.43,0.6007928]
[1730346741719,70.0,174.45,174.43,6.3334928]
[1730346742337,10.19484664,174.44,174.43,0.6007928]
[1730346743236,70.0,174.45,174.43,0.6007928]
[1730346743419,70.0,174.45,174.43,6.3335928]
[1730346743617,80.19484664,174.45,174.43,0.6007928]
[1730346744234,10.19484664,174.44,174.43,0.6007928]
[1730346745633,80.19484664,174.45,174.43,0.6007928]
[1730346746222,70.0,174.45,174.43,6.3335928]
[1730346746419,80.19484664,174.45,174.43,6.3335928]
[1730346746719,80.19484664,174.45,174.43,20.6658928]
[1730346747444,10.19484664,174.44,174.43,14.9330928]
[1730346749437,10.19484664,174.44,174.43,0.6007928]
[1730346749621,15.92744664,174.44,174.43,0.6007928]
[1730346750525,10.19484664,174.44,174.43,0.6007928]
[1730346751124,70.0,174.45,174.43,0.6007928]
[1730346751325,80.19484664,174.45,174.43,0.6007928]
[1730346752244,10.19484664,174.44,174.43,0.6007928]
[1730346753246,70.0,174.45,174.43,0.6007928]
[1730346753544,70.0,174.45,174.43,6.3336928]
[1730346755143,70.0,174.45,174.43,20.6659928]
[1730346755527,70.0,174.45,174.43,30.86083944]
[1730346755929,70.0,174.45,174.44,10.19484664]
[1730346756138,70.0,174.45,174.43,30.86083944]
[1730346756348,70.0,174.45,174.43,20.6659928]
[1730346759449,70.0,174.45,174.43,30.86083944]
[1730346761144,70.0,174.45,174.43,20.6659928]
[1730346761858,80.19484664,174.45,174.43,0.6007928]
[1730346762172,70.0,174.45,174.43,0.6007928]
[1730346762451,70.0,174.45,174.43,6.3336928]
[1730346762652,10.29484664,174.44,174.43,0.6007928]
[1730346763932,16.02744664,174.44,174.43,0.6007928]
[1730346764132,15.92744664,174.44,174.43,0.6007928]
[1730346765431,16.02744664,174.44,174.43,0.6007928]
[1730346770347,10.19484664,174.44,174.43,0.6007928]
[1730346772070,16.02744664,174.44,174.43,0.6007928]
[1730346775852,15.92744664,174.44,174.43,0.6007928]
[1730346776472,16.02744664,174.44,174.43,0.6007928]
[1730346777770,15.92744664,174.44,174.43,0.6007928]
[1730346777970,10.19484664,174.44,174.43,0.6007928]
[1730346779461,80.19484664,174.45,174.43,0.6007928]
[1730346780069,10.19484664,174.44,174.43,0.6007928]
[1730346780572,70.0,174.45,174.43,6.3336928]
[1730346780869,70.0,174.45,174.43,20.6659928]
[1730346781065,70.0,174.45,174.43,30.86083944]
[1730346781562,70.0,174.45,174.43,20.6659928]
[1730346785271,70.0,174.45,174.44,16.1632]
[1730346787358,70.0,174.45,174.44,21.8958]
[1730346789263,70.0,174.45,174.44,16.1632]
[1730346789468,70.0,174.45,174.43,0.6007928]
[1730346791466,80.19484664,174.45,174.43,0.6007928]
[1730346792276,70.0,174.45,174.43,0.6007928]
[1730346799585,80.19484664,174.45,174.43,0.6007928]
[1730346800487,70.0,174.45,174.43,0.6007928]
[1730346802785,70.0,174.45,174.43,30.86073944]